Cogmind - Beta 11 X6 @@@ ROGUE MODE // 2021.07.20 @ 07:30:57 Player: Boris Result: Destroyed by H-66 Slayer with Gauss Rifle Performance ------------- Evolutions (4) 2000 Regions Visited (9) 1800 Robots Destroyed (100) 500 Value Destroyed (4732) 4732 Prototype IDs (41) 820 Alien Tech Used (0) 0 Bonus (2608) 2608 TOTAL SCORE: 12460 Bonus ------- High Alert Combat Kills 525 Follower Combat Kills 662 Entered Garrisons 400 Used RIF Installer 1000 Aligned with FarCom 300 Friendly Fire -279 Cogmind --------- Core Integrity 0/850 Matter 125/300 Energy 35/100 System Corruption 4% Temperature Cool (13) Movement Walking (110) Location -6/Factory Parts ------- > --- POWER (2) -------- (None) > --- PROPULSION (4) --- Armored Leg Armored Leg Experimental Myomer Leg > --- UTILITY (7) ------ High-capacity Storage Unit Transport Network Coupler Improved Target Analyzer Relay Coupler [NC] (34) Relay Coupler [Swarmer] (50) > --- WEAPON (2) ------- Heavy Plasma Cannon > --- INVENTORY (20) --- Wheel Matter Compressor (250) Relay Coupler [Behemoth] (17) Proton Cannon Heavy Plasma Cannon Guided Plasma Cannon Gauss Cannon Heavy Missile Launcher Scatter Rocket Array Chainsword Peak State ------------ > --- POWER ------------ Cooled Ion Engine > --- PROPULSION ------- Armored Leg Armored Leg Armored Leg Armored Leg > --- UTILITY ---------- High-capacity Storage Unit Transport Network Coupler Improved Target Analyzer Layered Medium Armor Plating Relay Coupler [NC] Relay Coupler [Grunt] Relay Coupler [Hunter] > --- WEAPON ----------- Enhanced Autogun Scatter Rocket Array > --- INVENTORY -------- Cooled Ion Engine Light Treads Armored Treads Armored Leg Armored Leg Wheel Matter Compressor Relay Coupler [NC] Relay Coupler [Swarmer] Relay Coupler [Behemoth] Heavy Plasma Cannon Guided Plasma Cannon Enhanced Autogun Gauss Rifle Gauss Cannon Heavy Missile Launcher Datajack Remote Datajack Remote Datajack Chainsword [Rating: 61] Favorites ----------- Power Cooled Ion Engine Engine Cooled Ion Engine Power Core Light Nuclear Core Propulsion Light Treads Treads Light Treads Leg Armored Leg Wheel Wheel Utility Transport Network Coupler Device Improved Heat Sink Storage Large Storage Unit Processor Transport Network Coupler Hackware Relay Coupler [Sentry] Protection Light Armor Plating Weapon Improved EM Pulse Cannon Energy Cannon Improved EM Pulse Cannon Ballistic Gun Assault Rifle Ballistic Cannon Assault Cannon Launcher Improved Grenade Launcher Special Weapon Remote Datajack Slashing Weapon Chainsword Special Melee Weapon Datajack Build | -11 -10 -10 -10 -9 -8 -8 -7 -7 -6 ------- Run | Scr Mat Min Exi Min Mat Gar Fac Gar Fac Slots Evolved 8 | . . . . . 4 . 2 . 2 Power 1 | . . . . . . . . . 1 Propulsion 2 | . . . . . . . 1 . 1 Utility 5 | . . . . . 4 . 1 . . Weapon . | . . . . . . . . . . Parts Attached 124 | 8 5 1 3 5 15 18 4 8 57 Power 9 | 1 1 1 . . 2 . 1 . 3 Engine 8 | 1 . 1 . . 2 . 1 . 3 Core 1 | . 1 . . . . . . . . Reactor . | . . . . . . . . . . Propulsion 24 | 2 2 . . 2 1 2 1 . 14 Treads 7 | 1 1 . . 1 1 1 1 . 1 Leg 12 | . . . . . . . . . 12 Wheel 5 | 1 1 . . 1 . 1 . . 1 Hover . | . . . . . . . . . . Flight . | . . . . . . . . . . Utility 37 | 3 2 . 2 . 6 6 2 5 11 Device 6 | 1 1 . . . 2 1 . . 1 Storage 4 | 1 1 . 1 . . . . . 1 Processor 5 | 1 . . 1 . 1 . 1 . 1 Hackware 14 | . . . . . 1 4 . 4 5 Protection 8 | . . . . . 2 1 1 1 3 Artifact . | . . . . . . . . . . Weapon 54 | 2 . . 1 3 6 10 . 3 29 Energy Gun . | . . . . . . . . . . Energy Cannon 11 | . . . . . 4 5 . . 2 Ballistic Gun 20 | 2 . . . 2 1 1 . . 14 Ballistic Cannon 3 | . . . . 1 1 1 . . . Launcher 4 | . . . . . . 1 . 1 2 Special Weapon 9 | . . . . . . . . . 9 Impact Weapon . | . . . . . . . . . . Slashing Weapon 2 | . . . . . . . . 1 1 Piercing Weapon . | . . . . . . . . . . Special Melee Weapon 5 | . . . 1 . . 2 . 1 1 Unidentified Prototypes 5 | . . . . . 3 . . . 2 Parts Lost 27 | . . . . 4 . 2 . . 21 Power 3 | . . . . . . . . . 3 Propulsion 10 | . . . . 2 . 1 . . 7 Utility 6 | . . . . . . 1 . . 5 Weapon 8 | . . . . 2 . . . . 6 Highest Loss Streak 15 | . . . . 4 . 2 . . 15 Average Slot Usage (%) 95 | . 98 99 100 96 98 90 90 100 90 Engine 7 | . 1 4 14 14 9 9 7 7 7 Core 1 | . 12 9 . . . . . . . Treads 10 | . 14 14 14 14 9 9 7 15 7 Leg 1 | . . . . . . . . . 13 Wheel 8 | . 13 14 14 10 9 8 7 7 4 Device 6 | . 12 14 7 . 17 7 . . . Storage 9 | . 12 14 14 14 9 9 7 7 6 Processor 11 | . 1 . 6 14 16 9 13 15 13 Hackware 11 | . . . . . . 15 22 22 18 Protection 5 | . . . . . 9 5 7 7 5 Energy Cannon 5 | . . . . . 6 9 7 7 1 Ballistic Gun 6 | . 28 28 15 21 2 . . . 8 Ballistic Cannon 2 | . . . . 5 8 3 . . . Special Melee Weapon 2 | . . . 12 . . 3 7 4 . Naked Turns . | . . . . . . . . . . Heaviest Build 67 | 12 20 20 28 31 43 46 47 50 67 Greatest Support 64 | 20 40 10 10 20 10 40 10 10 64 Greatest Overweight (x) 6 | 1 1 1 2 3 4 4 4 4 6 Average Overweight (x) 2 | . . 1 1 2 3 3 4 4 2 Largest Inventory Capacity 20 | 8 10 10 15 15 15 15 15 15 20 Average Capacity 14 | 7 9 10 10 15 15 15 15 15 19 Most Carried 20 | 5 10 10 10 15 15 15 15 15 20 Average Carried 14 | 3 8 9 9 13 14 14 14 14 17 Final Capacity 20 | 5 10 10 15 15 15 15 15 15 20 Final Carried 15 | 5 10 10 10 15 15 15 15 15 10 Class Distribution -------------------- 37% | Bothacker-Mutant 24% | Mutant 11% | Scavenger-Mutant 11% | Commander-Mutant 9% | Skirmisher 6% | Scavenger-Skirmisher Dominant Class ---------------- Mutant | -10/Materials Mutant | -10/Mines Mutant | -10/Exiles Mutant | -9/Mines Skirmisher | -8/Materials Scavenger-Mutant | -8/Garrison Commander-Mutant | -7/Factory Bothacker-Mutant | -7/Garrison Bothacker-Mutant | -6/Factory Resources | -11 -10 -10 -10 -9 -8 -8 -7 -7 -6 ----------- Run | Scr Mat Min Exi Min Mat Gar Fac Gar Fac Matter Collected 2766 | 340 239 . . 198 361 435 50 192 951 Remotely . | . . . . . . . . . . Salvage Created 3309 | 172 424 . . 144 895 580 52 168 874 Parts 191 | 15 30 . . 7 37 42 3 7 50 Haulers Intercepted 3 | . 1 . . . 2 . . . . Recyclers Shooed 1 | . . . . . 1 . . . . Parts Field Recycled . | . . . . . . . . . . Retrieved Matter . | . . . . . . . . . . Parts Self-Destructed . | . . . . . . . . . . Prevented . | . . . . . . . . . . Kills | -11 -10 -10 -10 -9 -8 -8 -7 -7 -6 ------- Run | Scr Mat Min Exi Min Mat Gar Fac Gar Fac Combat Hostiles Destroyed 76 | . 8 . . 2 15 23 1 11 16 Melee 1 | . . . . . . . . 1 . Guns 18 | . 8 . . . . . . . 10 Cannons 27 | . . . . 2 15 5 1 2 2 AOE 26 | . . . . . . 16 . 8 2 Classes Destroyed 14 | 2 5 . . 2 2 . . 2 1 Worker 3 | . . . . 1 . . . . 2 Builder 6 | . 1 . . . . . . . 5 Tunneler 5 | 5 . . . . . . . . . Hauler 3 | . 1 . . . 2 . . . . Recycler 5 | 1 1 . . 1 2 . . . . Operator 1 | . . . . . 1 . . . . Watcher 1 | . 1 . . . . . . . . Swarmer 16 | . 3 . . . . 8 . 4 1 Grunt 40 | . 5 . . 1 12 11 1 4 6 Brawler 1 | . . . . . . . . 1 . Duelist 5 | . . . . 1 . 1 . 1 2 Sentry 6 | . . . . . 3 3 . . . Hunter 7 | . . . . . . . . 1 6 Programmer 1 | . . . . . . . . . 1 Best Kill Streak 12 | 4 5 . . 3 7 12 1 9 6 Combat Bots Only 12 | . 5 . . 2 7 12 1 9 5 Max Kills in Single Turn 4 | 1 1 . . 1 1 3 1 4 2 Gunslinging . | . . . . . . . . . . Exploded 4 | . . . . . . 3 . 4 1 Melee 1 | . . . . . . . . 1 . Uniques/NPCs Destroyed . | . . . . . . . . . . Combat | -11 -10 -10 -10 -9 -8 -8 -7 -7 -6 -------- Run | Scr Mat Min Exi Min Mat Gar Fac Gar Fac Damage Taken 7176 | . 248 3 . 396 552 653 127 211 4986 Core 1298 | . 73 . . 64 97 139 32 33 860 Absorbed by Shields 102 | . . . . . . 16 . . 86 Core Remaining (%) 73 | 100 . . . 45 . 57 . 90 . Volleys Fired 339 | 10 32 1 . 14 50 90 5 49 88 Largest 2 | 2 2 2 . 2 2 2 1 1 2 Hottest 138 | 40 40 40 . 58 112 138 69 69 90 Shots Fired 488 | 20 63 2 . 28 92 97 5 49 132 Gun 215 | 20 63 2 . 23 12 1 . . 94 Cannon 224 | . . . . 5 80 78 5 41 15 Launcher 28 | . . . . . . 18 . 8 2 Special 21 | . . . . . . . . . 21 Kinetic 265 | 20 63 2 . 28 54 4 . . 94 Thermal 68 | . . . . . 38 24 . . 6 Explosive 28 | . . . . . . 18 . 8 2 Electromagnetic 106 | . . . . . . 51 5 41 9 Robot Hit Streak 15 | 11 15 3 . 13 12 10 3 4 13 Robot Miss Streak 3 | 1 3 1 . 3 2 3 2 1 3 Penetration Max . | . . . . . . . . . . Secondary Targets 1 | . . . . . . . . . 1 Max Gunslinging Chain 1 | . . . . . . . . . 1 Shots Hit Robots 325 | 14 42 1 4 20 64 57 5 14 104 Core Hits 168 | 6 20 1 . 5 33 33 1 23 46 Critical Kills 7 | 1 2 . . . . . . . 4 Critical Parts Destroyed 2 | . . . . . . . . . 2 Critical Strikes 11 | 1 2 . . . 1 . 1 . 6 Meltdown 1 | . . . . . . . . . 1 Destroy 8 | 1 2 . . . . . . . 5 Blast 1 | . . . . . 1 . . . . Corrupt 1 | . . . . . . . 1 . . Melee Attacks 53 | . . . 4 . . 26 2 13 8 Impact . | . . . . . . . . . . Slashing 13 | . . . . . . . . 10 3 Piercing . | . . . . . . . . . . Sneak Attacks 39 | . . . 4 . . 21 1 6 7 Combat Hostiles 8 | . . . . . . 3 . 5 . Follow-up Attacks . | . . . . . . . . . . Damage Inflicted 8859 | 186 531 23 . 300 1335 2219 118 1743 2404 Guns 2350 | 186 531 15 . 214 132 17 . . 1255 Cannons 2433 | . . . . 86 1203 564 118 91 371 Explosions 3375 | . . . . . . 1636 . 1220 519 Melee 675 | . . . . . . . . 432 243 Ramming 26 | . . 8 . . . 2 . . 16 Kinetic 3222 | 186 531 15 . 300 842 93 . . 1255 Thermal 788 | . . . . . 493 123 . . 172 Explosive 3375 | . . . . . . 1636 . 1220 519 Electromagnetic 773 | . . . . . . 365 118 91 199 Impact . | . . . . . . . . . . Slashing 675 | . . . . . . . . 432 243 Piercing . | . . . . . . . . . . Highest Corruption 4 | . 4 4 4 4 . . . . 4 Average Corruption 3 | . 2 4 4 4 . . . . 2 Corruption Purged . | . . . . . . . . . . Effects 35 | . 6 12 5 12 . . . . . Message Errors 15 | . 3 5 . 7 . . . . . Matter Fused 5 | . . 1 2 2 . . . . . Heat Flow Errors 3 | . 1 1 1 . . . . . . Energy Discharges 7 | . 1 4 1 1 . . . . . Data Loss (minor) 4 | . . 1 1 2 . . . . . Weapon Failures 1 | . 1 . . . . . . . . Overload Shots . | . . . . . . . . . . Overflow Damage 303 | . . . . . 1 66 . 103 133 Projectiles 49 | . . . . . 1 16 . . 32 Explosions 89 | . . . . . . 50 . 25 14 Melee 165 | . . . . . . . . 78 87 Knockbacks 9 | . . . . . 9 . . . . Impact . | . . . . . . . . . . Kinetic 7 | . . . . . 7 . . . . Secondary 2 | . . . . . 2 . . . . Self-Inflicted Damage 22 | . . 3 . . . 8 . 11 . Shots 2 | . . . . . . 1 . 1 . Rammed 3 | . . 2 . . . 1 . . . Targets Rammed 6 | . . 2 . . . 1 . . 3 Kicked 3 | . . . . . . . . . 3 Crushed . | . . . . . . . . . . Highest Temperature 218 | . 145 184 218 5 68 48 64 144 147 Average Temperature 37 | . 34 94 115 3 19 14 30 46 36 Received Heat Transfer 1107 | . 141 . . 54 324 276 18 117 177 Siege Activations . | . . . . . . . . . . Robots Corrupted 3 | . . . . . . 2 . . 1 Combat Hostiles 3 | . . . . . . 2 . . 1 Parts Fried 6 | . . . . . . 4 . . 2 Impact Corruptions . | . . . . . . . . . . Robots Melted 1 | . . . . . . . . . 1 Combat Hostiles 1 | . . . . . . . . . 1 Parts Melted 1 | . . . . . . . . . 1 Heat Transferred 1360 | . . . . . 888 222 . . 250 Parts Sabotaged . | . . . . . . . . . . Parts Stolen . | . . . . . . . . . . Parts Stripped . | . . . . . . . . . . Power Chain Reactions . | . . . . . . . . . . Missiles Intercepted . | . . . . . . . . . . Alert | -11 -10 -10 -10 -9 -8 -8 -7 -7 -6 ------- Run | Scr Mat Min Exi Min Mat Gar Fac Gar Fac Peak Influence 1230 | 30 268 59 . 60 257 1043 1090 1230 833 Initial 749 | . 19 59 . . . 113 547 749 645 Average 526 | 14 136 50 . 15 100 853 714 1064 284 Maximum Alert Level 4 | . 1 . . . 1 3 3 4 3 Low Security (%) 41 | 100 81 100 . 100 82 2 . . 63 Level 1 8 | . 18 . . . 17 8 . . 8 Level 2 6 | . . . . . . 2 58 . 23 Level 3 31 | . . . . . . 85 41 27 5 Level 4 12 | . . . . . . . . 72 . Level 5 . | . . . . . . . . . . High Security . | . . . . . . . . . . Max Security . | . . . . . . . . . . Squads Dispatched 14 | . 2 . . . 2 . 2 . 8 Investigation 1 | . 1 . . . . . . . . Extermination 2 | . . . . . . . . . 2 Reinforcement 10 | . 1 . . . 2 . 1 . 6 Assault . | . . . . . . . . . . Garrison 1 | . . . . . . . 1 . . Intercept . | . . . . . . . . . . Construction Impeded 3 | . . . . . . . . . 3 Haulers Reinforced . | . . . . . . . . . . Active Scanning Responses . | . . . . . . . . . . Cargo Convoy Interrupts 1 | . . . . . . . . . 1 Stealth | -11 -10 -10 -10 -9 -8 -8 -7 -7 -6 --------- Run | Scr Mat Min Exi Min Mat Gar Fac Gar Fac Distress Signals 5 | . 1 . . . 2 . 1 . 1 Communications Jammed . | . . . . . . . . . . Distress Signals . | . . . . . . . . . . Times Spotted 136 | . 17 . . 2 28 28 9 10 42 Peak Tracking Total 11 | . 5 . . 2 5 5 4 8 11 Tactical Retreats 5 | . 1 . . . 1 2 . . 1 Traps | -11 -10 -10 -10 -9 -8 -8 -7 -7 -6 ------- Run | Scr Mat Min Exi Min Mat Gar Fac Gar Fac Traps Triggered 17 | . 2 . . . . 5 1 6 3 Indirectly . | . . . . . . . . . . Trap Hack Attempts 9 | . . . . . . 9 . . . Triggered . | . . . . . . . . . . Disarmed . | . . . . . . . . . . Reprogrammed . | . . . . . . . . . . Reused 1 | . . . . . . 1 . . . Traps Extracted . | . . . . . . . . . . Installed 5 | . . . . 1 2 2 . . . Triggered 1 | . . . . . . 1 . . . Machines | -11 -10 -10 -10 -9 -8 -8 -7 -7 -6 ---------- Run | Scr Mat Min Exi Min Mat Gar Fac Gar Fac Machines Disabled 26 | . . . . . 1 7 16 2 . Max in Single Turn 2 | . . . . . 1 2 . 1 . Garrison Access 1 | . . . . . . . . . 1 Garrison Relay 6 | . . . . . . 4 . 2 . Machines Sabotaged . | . . . . . . . . . . Garrisons Compromised . | . . . . . . . . . . Overloaded Fab Kills . | . . . . . . . . . . Fab Network Shutdowns . | . . . . . . . . . . Hacking | -11 -10 -10 -10 -9 -8 -8 -7 -7 -6 --------- Run | Scr Mat Min Exi Min Mat Gar Fac Gar Fac Machines Accessed 20 | . 8 . 3 . 4 . 2 . 3 Terminals 11 | . 6 . . . 3 . . . 2 Fabricators . | . . . . . . . . . . Repair Stations 2 | . 1 . . . . . 1 . . Recycling Units 1 | . 1 . . . . . . . . Scanalyzers . | . . . . . . . . . . Garrison Access 3 | . . . . . 1 . 1 . 1 Total Hacks 45 | . 25 . 4 . 7 . 4 . 5 Successful 25 | . 11 . 4 . 3 . 4 . 3 Failed 19 | . 13 . . . 4 . . . 2 Catastrophic 3 | . . . . . 1 . . . 2 Database Lockouts 1 | . 1 . . . . . . . . Manual 21 | . 16 . 1 . 3 . . . 1 Terminals 28 | . 20 . . . 5 . . . 3 Fabricators . | . . . . . . . . . . Repair Stations 4 | . 2 . . . . . 2 . . Recycling Units 3 | . 3 . . . . . . . . Scanalyzers . | . . . . . . . . . . Garrison Access 6 | . . . . . 2 . 2 . 2 Terminal Hacks 10 | . 5 . 4 . . . . . 1 Record 3 | . . . 3 . . . . . . Robot Analysis 1 | . 1 . . . . . . . . Terminal Index 1 | . 1 . . . . . . . . Patrol Status 1 | . 1 . . . . . . . . Hauler Manifests 2 | . 2 . . . . . . . . Registered Components 1 | . . . . . . . . . 1 EX-Prototype ID Bank 1 | . . . 1 . . . . . . Fabricator Hacks . | . . . . . . . . . . Repair Station Hacks 4 | . 2 . . . . . 2 . . Scan Component 2 | . 1 . . . . . 1 . . Repair 2 | . 1 . . . . . 1 . . Recycling Unit Hacks . | . . . . . . . . . . Scanalyzer . | . . . . . . . . . . Garrison Access Hacks 6 | . . . . . 2 . 2 . 2 Unlock Access 2 | . . . . . 1 . 1 . . Seal Access 1 | . . . . . . . . . 1 Coupler Status 3 | . . . . . 1 . 1 . 1 Unauthorized Hacks 5 | . 4 . . . 1 . . . . Terminals 4 | . 3 . . . 1 . . . . Assimilate 1 | . 1 . . . . . . . . Botnet 2 | . 1 . . . 1 . . . . Operators 1 | . 1 . . . . . . . . Fabricators . | . . . . . . . . . . Repair Stations . | . . . . . . . . . . Recycling Units 1 | . 1 . . . . . . . . Tunnel 1 | . 1 . . . . . . . . Scanalyzers . | . . . . . . . . . . Garrison Access . | . . . . . . . . . . Data Cores Recovered . | . . . . . . . . . . Used . | . . . . . . . . . . Hacking Detections 13 | . 7 . . . 3 . 1 . 2 Full Trace Events . | . . . . . . . . . . Feedback Events . | . . . . . . . . . . Feedback Blocked . | . . . . . . . . . . Robot Schematics Acquired . | . . . . . . . . . . Robots Built . | . . . . . . . . . . Matter . | . . . . . . . . . . Time . | . . . . . . . . . . Total Robot Build Rating . | . . . . . . . . . . Part Schematics Acquired . | . . . . . . . . . . Parts Built . | . . . . . . . . . . Matter . | . . . . . . . . . . Time . | . . . . . . . . . . Total Part Build Rating . | . . . . . . . . . . Parts Repaired 2 | . 1 . . . . . 1 . . Time 89 | . 38 . . . . . 51 . . Parts Recycled . | . . . . . . . . . . Recycled Matter . | . . . . . . . . . . Retrieved Matter . | . . . . . . . . . . Retrieved Components . | . . . . . . . . . . Parts Scanalyzed . | . . . . . . . . . . Part Schematics Acquired . | . . . . . . . . . . Parts Damaged . | . . . . . . . . . . Bothacking | -11 -10 -10 -10 -9 -8 -8 -7 -7 -6 ------------ Run | Scr Mat Min Exi Min Mat Gar Fac Gar Fac Used RIF Installer 2 | . . . . . . 1 . 1 . Coupler Efficiency 1 | . . . . . . . . 1 . Robots Hacked 25 | . . . 4 . . 2 2 3 14 Non-combat 10 | . . . 3 . . . 1 . 6 Combat 15 | . . . 1 . . 2 1 3 8 Robot Hacks Applied 29 | . . . 4 . . 2 2 3 18 parse_system 6 | . . . 4 . . . 1 . 1 find_chute 1 | . . . . . . . 1 . . find_fabricator 1 | . . . . . . . . . 1 drop_inventory 1 | . . . . . . . . . 1 purge_threat 4 | . . . . . . . . . 4 map_route 1 | . . . . . . . . . 1 redirect_shields 1 | . . . . . . . . . 1 find_garrison 1 | . . . . . . . . . 1 overload_power 1 | . . . . . . . . . 1 amplify_resonance 2 | . . . . . . . . . 2 overwrite_iff 4 | . . . . . . . . 1 3 formatsys_high 6 | . . . . . . 2 . 2 2 Relay Couplers Released 23 | . . . . . . 16 . 7 . Machine Destruction 23 | . . . . . . 16 . 7 . Attached 13 | . . . . . . 4 . 4 5 Robots Rewired 9 | . . . . . . 9 . . . Allies Hacked . | . . . . . . . . . . Hacks Repelled . | . . . . . . . . . . Allies | -11 -10 -10 -10 -9 -8 -8 -7 -7 -6 -------- Run | Scr Mat Min Exi Min Mat Gar Fac Gar Fac Total Allies 20 | . 1 . . . . 11 . 3 5 Largest Group 10 | . 1 . . . . 10 10 9 8 Highest-Rated Group 205 | . 10 . . . . 189 189 205 184 Highest-Rated Ally 111 | . 10 . . . . 38 38 38 111 Total Orders 10 | . . . . . . 2 . 4 4 STAY 7 | . . . . . . 1 . 3 3 FOLLOW 3 | . . . . . . 1 . 1 1 Ally Attacks 130 | . . . . . . 15 37 10 68 Total Damage 3010 | . . . . . . 163 1223 197 1427 Kills 25 | . . . . . . 2 11 2 10 Allies Corrupted . | . . . . . . . . . . Allies Melted . | . . . . . . . . . . Intel | -11 -10 -10 -10 -9 -8 -8 -7 -7 -6 ------- Run | Scr Mat Min Exi Min Mat Gar Fac Gar Fac Robot Analysis Total 1 | . 1 . . . . . . . . Derelict Logs Recovered 2 | . . 1 . 1 . . . . . Drone Launches . | . . . . . . . . . . Drone Recoveries . | . . . . . . . . . . Exploration | -11 -10 -10 -10 -9 -8 -8 -7 -7 -6 ------------- Run | Scr Mat Min Exi Min Mat Gar Fac Gar Fac Turns Passed 9010 | 133 682 470 307 458 1377 2490 287 1522 1284 Spaces Moved 5640 | 95 546 475 305 310 624 1523 189 874 699 Core 7 | 7 . . . . . . . . . Treads 54 | 4 3 . . 34 . 13 . . . Legs 371 | . . . . . . . . . 371 Wheels 5208 | 84 543 475 305 276 624 1510 189 874 328 Hover . | . . . . . . . . . . Flight . | . . . . . . . . . . Fastest Speed 50 | 50 80 95 95 110 125 125 140 140 110 Average Speed 125 | 89 94 95 96 129 132 135 140 140 133 Slowest Speed 360 | 160 160 95 110 260 140 360 140 140 200 Overloaded Moves . | . . . . . . . . . . Propulsion Burnouts . | . . . . . . . . . . Robots Hopped . | . . . . . . . . . . Cave-ins Triggered . | . . . . . . . . . . Exploration Rate (%) 55 | 5 86 92 66 73 50 92 8 64 17 Regions Visited 9 Branch Regions 3 Pre-discovered Areas 3 | . 1 1 1 . . . . . . Known Exits Taken 2 | . . . . . 1 . 1 . . Unknown Exits Taken 5 | 1 1 1 1 1 . . . . . Scrap Searched 4 | . . 2 . 2 . . . . . Spaces Dug 6 | . . . . . . 3 . 2 1 Terrain Destroyed 128 | . . . . . 1 67 . 55 5 Melee 3 | . . . . . . . . 2 1 Projectile 2 | . . . . . 1 1 . . . AOE 123 | . . . . . . 66 . 53 4 Terrain Rammed . | . . . . . . . . . . Walls Destroyed . | . . . . . . . . . . Machines Disabled . | . . . . . . . . . . Actions | -11 -10 -10 -10 -9 -8 -8 -7 -7 -6 --------- Run | Scr Mat Min Exi Min Mat Gar Fac Gar Fac Total 7079 | 119 649 492 314 336 1093 1822 204 1106 944 Wait 676 | . 54 10 . . 370 89 . 101 52 Move 5633 | 94 545 474 304 309 624 1522 189 873 699 Hop . | . . . . . . . . . . Pick Up 69 | 6 8 2 1 7 12 11 2 5 15 Fast Attach 46 | 7 3 . . 2 8 6 3 2 15 Attach 30 | 1 . 1 1 2 3 2 1 1 18 Detach 11 | . 1 . . . 1 2 1 2 4 Swap 48 | . 2 . 2 1 4 10 . 5 24 Drop 56 | 1 4 2 2 . 19 12 1 5 10 Fire 339 | 10 32 1 . 14 50 90 5 49 88 Melee 53 | . . . 4 . . 26 2 13 8 Ram 2 | . . 2 . . . . . . . Kick 3 | . . . . . . . . . 3 Crush 1 | . . . . . . 1 . . . Escape Stasis 95 | . . . . . . 39 . 48 8 Rewire 3 | . . . . . . 1 . 2 . Trap 14 | . . . . 1 2 11 . . . Miscellaneous . | . . . . . . . . . . Route ------- -11/Scrapyard -10/Materials -10/Mines (discovered 3 exits: [*Mat x2] / *Exi) -10/Exiles -9/Mines -8/Materials (discovered 3 exits: *Fac x2 / Gar) -8/Garrison (discovered 3 exits: *Fac x3) -7/Factory -7/Garrison (discovered 2 exits: *Fac x2) -6/Factory History --------- Turn | Location | Event 38 | -11/Scrapyard | Discovered new exit (range 15) 134 | -11/Scrapyard | Entered Materials 305 | -10/Materials | Repaired Imp. Terrain Scanner? 318 | -10/Materials | Build established: Mutant 483 | -10/Materials | Discovered new exit (range 11) 531 | -10/Materials | Central database locked down 816 | -10/Materials | Entered Mines 817 | -10/Mines | Learned location of Storage (-9) 886 | -10/Mines | Learned 2 Materials zone layouts 902 | -10/Mines | Deemed a non-threat by the Exiles lab entrance 902 | -10/Mines | Discovered new exit (range 5) 915 | -10/Mines | Discovered new exit (range 7) 1138 | -10/Mines | A weapon hastily lodged in a ceiling crevice suddenly fell to the ground 1152 | -10/Mines | Discovered new exit (range 7) 1286 | -10/Mines | Entered Exiles 1309 | -10/Exiles | Met 8R-AWN 1337 | -10/Exiles | Met EX-HEX 1366 | -10/Exiles | Met EX-BIN 1424 | -10/Exiles | Aligned with FarCom system 1425 | -10/Exiles | Given EX-Vault access code 1447 | -10/Exiles | Opened EX-Vault 1459 | -10/Exiles | Found Gui. Plasma Cannon 1478 | -10/Exiles | Warned to stay clear of 0b10 Research branches 1505 | -10/Exiles | Met EX-DEC 1532 | -10/Exiles | Learned location of Zion (-6) 1584 | -10/Exiles | Discovered new exit (range 10) 1593 | -10/Exiles | Left Exiles lab with Gui. Plasma Cannon 1593 | -10/Exiles | Entered Mines 1736 | -9/Mines | Found a hidden stash of uninstalled traps 1791 | -9/Mines | YI-UF0 nonchalantly dropped a Grenade Launcher on the ground 1845 | -9/Mines | Core integrity fell below 50% 1889 | -9/Mines | Lost 4 parts (2n2w) 1925 | -9/Mines | Learned location of 1 exit from Materials 2028 | -9/Mines | Discovered new exit (range 10) 2051 | -9/Mines | Entered Materials 2051 | -8/Materials | Evolved 4 slots: Utility x4 2052 | -8/Materials | Identified exit to Factory 2347 | -8/Materials | Build established: Skirmisher 2394 | -8/Materials | Discovered exit to Factory (range 16) 3027 | -8/Materials | Destroyed 7 combat bots 3307 | -8/Materials | Build established: Scavenger-Skirmisher 3428 | -8/Materials | Identified exit to Garrison 3428 | -8/Materials | Entered Garrison 3431 | -8/Garrison | Triggered checkpoint 3505 | -8/Garrison | Triggered checkpoint 3632 | -8/Garrison | Discovered exit to Factory (range 14) 3638 | -8/Garrison | Triggered checkpoint 3657 | -8/Garrison | Installed Relay Interface Framework 3734 | -8/Garrison | Build established: Scavenger-Mutant 3758 | -8/Garrison | Triggered checkpoint 3781 | -8/Garrison | Destroyed 12 combat bots 3832 | -8/Garrison | Discovered exit to Factory (range 9) 3955 | -8/Garrison | Garrison Relay disabled 4082 | -8/Garrison | Triggered checkpoint 4102 | -8/Garrison | Garrison Relay disabled 4217 | -8/Garrison | Discovered exit to Factory (range 9) 4404 | -8/Garrison | Triggered checkpoint 4441 | -8/Garrison | Garrison Relay disabled 4636 | -8/Garrison | Triggered checkpoint 4668 | -8/Garrison | Garrison Relay disabled 4939 | -8/Garrison | Build established: Bothacker-Mutant 5515 | -8/Garrison | Build established: Commander-Mutant 5918 | -8/Garrison | Entered Factory 5918 | -7/Factory | Accompanied by 10 allies 5918 | -7/Factory | Evolved 2 slots: Propulsion x1, Utility x1 6033 | -7/Factory | Repaired Cld. Ion Engine? 6177 | -7/Factory | Garrison activated, responded to threat 6205 | -7/Factory | Identified exit to Garrison 6205 | -7/Factory | Entered Garrison 6205 | -7/Garrison | Accompanied by 8 allies 6212 | -7/Garrison | Expanded RIF knowledge: Coupler Efficiency 6366 | -7/Garrison | Triggered checkpoint 6467 | -7/Garrison | Garrison Relay disabled 6496 | -7/Garrison | Build established: Bothacker-Mutant 6600 | -7/Garrison | Triggered checkpoint 6604 | -7/Garrison | Triggered checkpoint 6640 | -7/Garrison | Destroyed 9 combat bots 6701 | -7/Garrison | Discovered new exit (range 15) 6794 | -7/Garrison | Triggered checkpoint 7149 | -7/Garrison | Discovered new exit (range 15) 7246 | -7/Garrison | Triggered checkpoint 7341 | -7/Garrison | Garrison Relay disabled 7727 | -7/Garrison | Entered Factory 7727 | -6/Factory | Accompanied by 8 allies 7727 | -6/Factory | Evolved 2 slots: Power x1, Propulsion x1 8363 | -6/Factory | Lost 4 parts (1p2n1u) 8754 | -6/Factory | Found Prototype Launcher 8754 | -6/Factory | Identified Scatter Rocket Array 8937 | -6/Factory | Cargo convoy interrupted 8986 | -6/Factory | Core integrity fell below 50% 9004 | -6/Factory | Core integrity fell below 20% 9011 | -6/Factory | Destroyed by H-66 Slayer with Gauss Rifle Last Messages --------------- 09002_ Penetrated by Slug. 09002_ Remote Datajack destroyed. 09002_ Penetrated by Slug. 09002_ Destroyed Shock Rifle. 09002_ P-60 Hacker suffers critical hit (Meltdown). 09002_ Gravmag System melted. 09003_ R-10 Processor collects Gravmag System. 09003_ Penetrated by Slug. 09005_ K-01 Serf collects debris. 09005_ Penetrated by Slug. 09005_ Arm. Leg destroyed. 09006_ R-10 Processor collects Lgt. Ion Engine. 09006_ Penetrated by Slug. 09006_ Relay Coupler [Grunt] destroyed. 09008_ K-01 Serf collects debris. 09008_ Penetrated by Slug. 09009_ Slug penetrates Wall. 09010_ Acquired Prototype Leg. 09010_ Identified Exp. Myomer Leg. 09011_ Penetrated by Slug. Map ----- +----------------------------------------------------+ | ?????????????????????????????????????????????????? | | ??????????????????????? ???????????????????????? | | ????????????????????? ???????????????????????? | | ?????????????????? ???????????????????????? | | ???????????????? ???????????????????????? | | ?????????????? ???????????????????????? | | ?????????????? ???????????????????????? | | ?????????????? ???????????????????????? | | ??????????????? #??????????????????????? | | ????????????????? #??????????????????????? | | ?????????????????? ##############?????????? | | ??????????????????? # #?????????? | | ????????????????????# # """ ""? #?????????? | | ???????###########??# # """ """ #?????????? | | ???????# #??# # """ """ #?????????? | | ???????#] """ #??# # #?????????? | | ???????#]/ """ #??# + """ """ #?????????? | | ???????# """ #??# %# """ """ #?????????? | | ???????# #??# # """ """ #?????????# | | ???????# #??#####R#! #?????????# | | ???????# #??????#h# #?????????# | | #####??# #??????#!# #?????????# | | !! #??#####+#####?????##!#= #?????????# | | !! !#?????# ##########%%###[h################### | | ! #?????# ## % |![[%[%%h/[=# # | | #?????# ## % R%[!@===!!=# # | | = !#?????# ## " ===// k[] # # | | #?????# ## " ""[ %[!%% !# # | | ##+######## ## """[ "us][! # + | | + ""=""""[* # # | | ######### ## = R # # | | ????????# ## % # # | | ????????# ##############+#### A | | ????????# ^ | | ????????# ^ = | | ??????? = ! = "" | | ?????? % % g [ % "" | | ????? ^ ! g "" | | ???? ^ =%! "" | | ??? ^ = "" | | ???#########+##############+################# "" | | ?????????????????????# #? "" | | ?????????????????????# """"""" ## """" # | | ?????????????????????# """"""" ## """" # | | ?????????????????????# """"""" ## """" # | | ?????????????????????#! """""" ## """" # | | ?????????????????????# ## """" + | | ?????????????????????# ##* """" # | | ?????????????????????# ## """" ## ### | | ?????????????????????# ! ## ## # | +----------------------------------------------------+ Best States ------------- Heat Dissipation 45 Energy Generation 25 Energy Capacity 470 Matter Stores 300 Matter Capacity 300 Sight Range 16 Terrain Scan Range 16 Terrain Scan Density 60 Armor Coverage 375 Evasion (%) 55 Target Analysis 6 Recoil Reduction 3 Particle Charging 20 Salvage Targeting 1 Offensive Hacking 10 Relay Coupler Types 116 Relay Coupler Value 4 Item Schematics ----------------- None Robot Schematics ------------------ None Fabricated ------------ Nothing Alien Tech Used ----------------- None Achievements -------------- None Challenges ------------ None Game ------ Seed InsulationBiometalCompactor Manual? 0 Play Time 01:20:26 Cumulative 213.3 hours Start 2021.07.20 @ 06:09:57 End 2021.07.20 @ 07:30:57 Sessions 1 Manual Loads 0 Difficulty Rogue Special Mode None Game No. 77 Rogue 62 Adventurer 15 Explorer 0 Win Type - Total 9 Types 4/0/2/1/2/0/0/0/0 Lore% 83 Gallery% 84 Achievement% 69 Wizard Run 0 Options --------- ASCII 0 Keyboard 0 Movement Numpad Keybinds 0 Fullscreen 1 Font 18/SmallcapsGlow Map View 76x50 Tactical HUD 1 Map Filters NONE Filters NONE Steam 1 RUN: e1c58822-8d2a-4801-993d-66975a9b6a7b